[Event "Titled Tuesday Blitz August 1 Early 2023"]
[White "Rangel, Daniel"]
[Black "Dvirnyy, Danyyil"]
[WhiteFideId "2124475"]
[BlackFideId "817570"]
[WhiteElo "2437"]
[BlackElo "2779"]
[Result "0-1"]
[Round "1"]
[TimeControl "180+1"]
[Date "2023.08.01"]
[WhiteClock "0:00:09"]
[BlackClock "0:01:02"]
[Board "67"]

1. c4 {[%clk 0:02:53]}  e5 {[%clk 0:02:58]} 2. g3 {[%clk 0:02:54]}  d5 {[%clk 0:02:53]} 3. Bg2 {[%clk 0:02:55]}  d4 {[%clk 0:02:52]} 4. Nf3 {[%clk 0:02:51]}  Nc6 {[%clk 0:02:51]} 5. O-O {[%clk 0:02:48]}  a5 {[%clk 0:02:44]} 6. e3 {[%clk 0:02:46]}  Be7 {[%clk 0:02:43]} 7. exd4 {[%clk 0:02:45]}  exd4 {[%clk 0:02:41]} 8. d3 {[%clk 0:02:45]}  Nf6 {[%clk 0:02:41]} 9. Bf4 {[%clk 0:02:42]}  O-O {[%clk 0:02:38]} 10. Ne5 {[%clk 0:02:34]}  Nxe5 {[%clk 0:02:31]} 11. Bxe5 {[%clk 0:02:35]}  Bg4 {[%clk 0:02:25]} 12. f3 {[%clk 0:02:24]}  Bf5 {[%clk 0:02:17]} 13. g4 {[%clk 0:02:16]}  Be6 {[%clk 0:02:16]} 14. Nd2 {[%clk 0:02:09]}  Nd7 {[%clk 0:02:13]} 15. Bg3 {[%clk 0:01:59]}  Nc5 {[%clk 0:01:58]} 16. Ne4 {[%clk 0:01:57]}  Nxe4 {[%clk 0:01:57]} 17. fxe4 {[%clk 0:01:53]}  a4 {[%clk 0:01:54]} 18. h3 {[%clk 0:01:42]}  c6 {[%clk 0:01:48]} 19. Qd2 {[%clk 0:01:31]}  Ra5 {[%clk 0:01:42]} 20. Rf2 {[%clk 0:01:15]}  h5 {[%clk 0:01:37]} 21. Bf3 {[%clk 0:01:02]}  hxg4 {[%clk 0:01:29]} 22. Bxg4 {[%clk 0:01:00]}  Bxg4 {[%clk 0:01:26]} 23. hxg4 {[%clk 0:01:01]}  Rg5 {[%clk 0:01:20]} 24. Qf4 {[%clk 0:00:54]}  Qd7 {[%clk 0:01:19]} 25. Kh2 {[%clk 0:00:42]}  Rxg4 {[%clk 0:01:17]} 26. Qf5 {[%clk 0:00:41]}  Qe6 {[%clk 0:01:14]} 27. Qxe6 {[%clk 0:00:31]}  fxe6 {[%clk 0:01:15]} 28. Rxf8+ {[%clk 0:00:31]}  Kxf8 {[%clk 0:01:13]} 29. b3 {[%clk 0:00:32]}  a3 {[%clk 0:01:10]} 30. Be5 {[%clk 0:00:16]}  Bf6 {[%clk 0:01:09]} 31. Bd6+ {[%clk 0:00:14]}  Kf7 {[%clk 0:01:09]} 32. Bxa3 {[%clk 0:00:14]}  Be5+ {[%clk 0:01:08]} 33. Kh1 {[%clk 0:00:13]}  Rg3 {[%clk 0:01:08]} 34. Rd1 {[%clk 0:00:12]}  Rh3+ {[%clk 0:01:09]} 35. Kg2 {[%clk 0:00:12]}  Rh2+ {[%clk 0:01:09]} 36. Kf3 {[%clk 0:00:12]}  Rxa2 {[%clk 0:01:10]} 37. Bc5 {[%clk 0:00:11]}  Rb2 {[%clk 0:01:10]} 38. b4 {[%clk 0:00:11]}  g5 {[%clk 0:01:08]} 39. Kg4 {[%clk 0:00:11]}  Kg6 {[%clk 0:01:08]} 40. Kf3 {[%clk 0:00:11]}  Rh2 {[%clk 0:01:02]} 41. Ra1 {[%clk 0:00:10]}  Kh5 {[%clk 0:01:02]} 42. Ra7 {[%clk 0:00:09]}  g4# {[%clk 0:01:02]} 0-1


[Site "https://www.chess.com"]

[Event "Titled Tuesday Blitz August 1 Early 2023"]
[White "Pershina, Elena"]
[Black "Tristan, Leonardo"]
[WhiteFideId "24147516"]
[BlackFideId "113816"]
[WhiteElo "2431"]
[BlackElo "2763"]
[Result "0-1"]
[Round "1"]
[TimeControl "180+1"]
[Date "2023.08.01"]
[WhiteClock "0:01:25"]
[BlackClock "0:02:14"]
[Board "73"]

1. c4 {[%clk 0:02:59]}  e6 {[%clk 0:02:59]} 2. g3 {[%clk 0:02:58]}  d5 {[%clk 0:03:00]} 3. Bg2 {[%clk 0:02:58]}  Nf6 {[%clk 0:03:00]} 4. Nf3 {[%clk 0:02:58]}  Be7 {[%clk 0:03:01]} 5. b3 {[%clk 0:02:58]}  O-O {[%clk 0:03:01]} 6. Bb2 {[%clk 0:02:58]}  a5 {[%clk 0:03:01]} 7. O-O {[%clk 0:02:57]}  a4 {[%clk 0:03:01]} 8. d4 {[%clk 0:02:55]}  a3 {[%clk 0:02:54]} 9. Bc3 {[%clk 0:02:54]}  c6 {[%clk 0:02:51]} 10. Qc2 {[%clk 0:02:53]}  Ne4 {[%clk 0:02:39]} 11. Nbd2 {[%clk 0:02:51]}  Nxc3 {[%clk 0:02:39]} 12. Qxc3 {[%clk 0:02:52]}  Na6 {[%clk 0:02:33]} 13. e4 {[%clk 0:02:45]}  dxc4 {[%clk 0:02:27]} 14. Nxc4 {[%clk 0:02:36]}  c5 {[%clk 0:02:27]} 15. Rad1 {[%clk 0:02:30]}  cxd4 {[%clk 0:02:26]} 16. Nxd4 {[%clk 0:02:24]}  Qc7 {[%clk 0:02:27]} 17. Nb5 {[%clk 0:02:18]}  Qc5 {[%clk 0:02:27]} 18. Nbd6 {[%clk 0:02:14]}  Bxd6 {[%clk 0:02:24]} 19. Rxd6 {[%clk 0:02:11]}  b5 {[%clk 0:02:21]} 20. e5 {[%clk 0:02:07]}  Ra7 {[%clk 0:02:20]} 21. Rfd1 {[%clk 0:01:45]}  bxc4 {[%clk 0:02:19]} 22. Rd8 {[%clk 0:01:40]}  cxb3 {[%clk 0:02:17]} 23. Qxc5 {[%clk 0:01:27]}  Nxc5 {[%clk 0:02:17]} 24. Rxf8+ {[%clk 0:01:27]}  Kxf8 {[%clk 0:02:18]} 25. Rd8+ {[%clk 0:01:26]}  Ke7 {[%clk 0:02:18]} 26. Rxc8 {[%clk 0:01:25]}  bxa2 {[%clk 0:02:14]} 0-1


[Site "https://www.chess.com"]

[Event "Titled Tuesday Blitz August 1 Early 2023"]
[White "Kobo, Ori"]
[Black "Urbina Perez, Juan Antonio"]
[WhiteFideId "2812320"]
[BlackFideId "2217368"]
[WhiteElo "2760"]
[BlackElo "2431"]
[Result "1-0"]
[Round "1"]
[TimeControl "180+1"]
[Date "2023.08.01"]
[WhiteClock "0:00:03"]
[BlackClock "0:00:00"]
[Board "74"]

1. Nf3 {[%clk 0:02:58]}  d5 {[%clk 0:02:59]} 2. g3 {[%clk 0:02:57]}  Nd7 {[%clk 0:02:59]} 3. d4 {[%clk 0:02:56]}  Nb6 {[%clk 0:02:59]} 4. Nc3 {[%clk 0:02:57]}  Bf5 {[%clk 0:02:57]} 5. Nh4 {[%clk 0:02:55]}  Bd7 {[%clk 0:02:50]} 6. a4 {[%clk 0:02:54]}  a5 {[%clk 0:02:49]} 7. Bg2 {[%clk 0:02:53]}  Nf6 {[%clk 0:02:49]} 8. O-O {[%clk 0:02:49]}  e6 {[%clk 0:02:49]} 9. e4 {[%clk 0:02:49]}  dxe4 {[%clk 0:02:42]} 10. Nxe4 {[%clk 0:02:50]}  Nxe4 {[%clk 0:02:33]} 11. Bxe4 {[%clk 0:02:51]}  Rb8 {[%clk 0:02:28]} 12. c3 {[%clk 0:02:43]}  Be7 {[%clk 0:02:25]} 13. Ng2 {[%clk 0:02:39]}  O-O {[%clk 0:02:24]} 14. Nf4 {[%clk 0:02:36]}  Bc6 {[%clk 0:02:22]} 15. Bxc6 {[%clk 0:02:28]}  bxc6 {[%clk 0:02:23]} 16. Nd3 {[%clk 0:02:24]}  Nd5 {[%clk 0:02:11]} 17. Qe2 {[%clk 0:02:21]}  Bd6 {[%clk 0:02:10]} 18. Rd1 {[%clk 0:02:20]}  Qe7 {[%clk 0:02:08]} 19. Ne5 {[%clk 0:02:07]}  Bxe5 {[%clk 0:01:51]} 20. dxe5 {[%clk 0:02:07]}  Rfd8 {[%clk 0:01:48]} 21. Ra2 {[%clk 0:01:53]}  Qc5 {[%clk 0:01:41]} 22. Bg5 {[%clk 0:01:49]}  Rdc8 {[%clk 0:01:34]} 23. Rd4 {[%clk 0:01:45]}  Rb3 {[%clk 0:01:26]} 24. Qh5 {[%clk 0:01:33]}  Qf8 {[%clk 0:00:58]} 25. Rg4 {[%clk 0:01:25]}  Kh8 {[%clk 0:00:54]} 26. Rh4 {[%clk 0:01:21]}  h6 {[%clk 0:00:53]} 27. Bc1 {[%clk 0:01:01]}  Kh7 {[%clk 0:00:46]} 28. Kg2 {[%clk 0:00:56]}  Rd8 {[%clk 0:00:41]} 29. Qf3 {[%clk 0:00:55]}  Ne7 {[%clk 0:00:34]} 30. Qe4+ {[%clk 0:00:50]}  Kg8 {[%clk 0:00:33]} 31. Rg4 {[%clk 0:00:46]}  Nf5 {[%clk 0:00:30]} 32. Qxc6 {[%clk 0:00:42]}  Qe7 {[%clk 0:00:26]} 33. Qc4 {[%clk 0:00:37]}  Rdb8 {[%clk 0:00:23]} 34. Ra1 {[%clk 0:00:30]}  Qd7 {[%clk 0:00:22]} 35. Qe2 {[%clk 0:00:24]}  Qd5+ {[%clk 0:00:21]} 36. Kg1 {[%clk 0:00:24]}  Rd8 {[%clk 0:00:19]} 37. Be3 {[%clk 0:00:18]}  Nxe3 {[%clk 0:00:15]} 38. Qxe3 {[%clk 0:00:18]}  Qd2 {[%clk 0:00:15]} 39. Qc5 {[%clk 0:00:10]}  Rxb2 {[%clk 0:00:13]} 40. Rf4 {[%clk 0:00:11]}  Rdb8 {[%clk 0:00:11]} 41. Qxc7 {[%clk 0:00:08]}  Rb1+ {[%clk 0:00:11]} 42. Rxb1 {[%clk 0:00:09]}  Rxb1+ {[%clk 0:00:12]} 43. Kg2 {[%clk 0:00:09]}  Qd1 {[%clk 0:00:11]} 44. Qxf7+ {[%clk 0:00:09]}  Kh7 {[%clk 0:00:10]} 45. Qxe6 {[%clk 0:00:03]}  Qf1+ {[%clk 0:00:10]} 46. Kf3 {[%clk 0:00:04]}  Qh1+ {[%clk 0:00:11]} 47. Kg4 {[%clk 0:00:03]}  Qd1+ {[%clk 0:00:11]} 48. Kh3 {[%clk 0:00:03]}  Qf1+ {[%clk 0:00:10]} 49. Kg4 {[%clk 0:00:04]}  Rb7 {[%clk 0:00:10]} 50. Qf5+ {[%clk 0:00:04]}  Kg8 {[%clk 0:00:10]} 51. Qf8+ {[%clk 0:00:04]}  Kh7 {[%clk 0:00:10]} 52. Qf5+ {[%clk 0:00:04]}  Kg8 {[%clk 0:00:10]} 53. Qe4 {[%clk 0:00:04]}  Qd1+ {[%clk 0:00:09]} 54. f3 {[%clk 0:00:04]}  Re7 {[%clk 0:00:07]} 55. e6 {[%clk 0:00:05]}  Qd6 {[%clk 0:00:07]} 56. Qd4 {[%clk 0:00:04]}  Qxe6+ {[%clk 0:00:06]} 57. Rf5 {[%clk 0:00:02]}  Qg6+ {[%clk 0:00:05]} 58. Kf4 {[%clk 0:00:02]}  Rf7 {[%clk 0:00:03]} 59. Qd5 {[%clk 0:00:03]}  Qg5+ {[%clk 0:00:00]} 60. Ke4 {[%clk 0:00:03]} 1-0


[Site "https://www.chess.com"]

[Event "Titled Tuesday Blitz August 1 Early 2023"]
[White "Pandey Srishti"]
[Black "Cherniaiev, Tykhon"]
[WhiteFideId "35093290"]
[BlackFideId "14182360"]
[WhiteElo "2430"]
[BlackElo "2759"]
[Result "0-1"]
[Round "1"]
[TimeControl "180+1"]
[Date "2023.08.01"]
[WhiteClock "0:00:16"]
[BlackClock "0:00:15"]
[Board "75"]

1. e4 {[%clk 0:03:00]}  e5 {[%clk 0:02:54]} 2. Nf3 {[%clk 0:03:00]}  Nc6 {[%clk 0:02:54]} 3. Bc4 {[%clk 0:02:51]}  Bc5 {[%clk 0:02:53]} 4. c3 {[%clk 0:02:51]}  Nf6 {[%clk 0:02:53]} 5. d4 {[%clk 0:02:51]}  exd4 {[%clk 0:02:54]} 6. e5 {[%clk 0:02:51]}  d5 {[%clk 0:02:52]} 7. Bb5 {[%clk 0:02:51]}  Ne4 {[%clk 0:02:52]} 8. cxd4 {[%clk 0:02:51]}  Bb6 {[%clk 0:02:52]} 9. O-O {[%clk 0:02:47]}  O-O {[%clk 0:02:51]} 10. Nc3 {[%clk 0:02:47]}  f6 {[%clk 0:02:45]} 11. Bxc6 {[%clk 0:02:38]}  bxc6 {[%clk 0:02:45]} 12. exf6 {[%clk 0:02:38]}  Nxf6 {[%clk 0:02:46]} 13. Ne5 {[%clk 0:02:36]}  Bb7 {[%clk 0:02:14]} 14. Be3 {[%clk 0:02:36]}  Qd6 {[%clk 0:02:09]} 15. Rc1 {[%clk 0:02:35]}  Rae8 {[%clk 0:02:09]} 16. Qd3 {[%clk 0:02:31]}  Nd7 {[%clk 0:01:55]} 17. f4 {[%clk 0:02:29]}  Nf6 {[%clk 0:01:53]} 18. a3 {[%clk 0:02:16]}  a5 {[%clk 0:01:50]} 19. Kh1 {[%clk 0:02:12]}  Qe6 {[%clk 0:01:26]} 20. Bg1 {[%clk 0:02:11]}  Qd6 {[%clk 0:01:22]} 21. Qh3 {[%clk 0:01:51]}  Bc8 {[%clk 0:01:19]} 22. Qd3 {[%clk 0:01:49]}  Bb7 {[%clk 0:01:14]} 23. Qh3 {[%clk 0:01:48]}  Ne4 {[%clk 0:00:53]} 24. Nxe4 {[%clk 0:01:45]}  dxe4 {[%clk 0:00:54]} 25. Qe3 {[%clk 0:01:45]}  Qd5 {[%clk 0:00:50]} 26. Rfe1 {[%clk 0:01:37]}  Rd8 {[%clk 0:00:47]} 27. Rcd1 {[%clk 0:01:37]}  Rf6 {[%clk 0:00:33]} 28. h3 {[%clk 0:01:26]}  Rdf8 {[%clk 0:00:32]} 29. Bh2 {[%clk 0:01:21]}  Rd8 {[%clk 0:00:30]} 30. Bg1 {[%clk 0:01:21]}  Re6 {[%clk 0:00:27]} 31. b3 {[%clk 0:00:51]}  Red6 {[%clk 0:00:23]} 32. a4 {[%clk 0:00:50]}  Re6 {[%clk 0:00:21]} 33. Nc4 {[%clk 0:00:45]}  Ba7 {[%clk 0:00:20]} 34. Rd2 {[%clk 0:00:40]}  Rf6 {[%clk 0:00:18]} 35. Red1 {[%clk 0:00:39]}  Rdf8 {[%clk 0:00:18]} 36. Bh2 {[%clk 0:00:37]}  Bc8 {[%clk 0:00:18]} 37. Ne5 {[%clk 0:00:36]}  Be6 {[%clk 0:00:18]} 38. Rb1 {[%clk 0:00:29]}  Rb8 {[%clk 0:00:18]} 39. Rdb2 {[%clk 0:00:25]}  Bxd4 {[%clk 0:00:16]} 40. Qe2 {[%clk 0:00:24]}  Bxb2 {[%clk 0:00:16]} 41. Rxb2 {[%clk 0:00:25]}  Rxb3 {[%clk 0:00:16]} 42. Rd2 {[%clk 0:00:25]}  Rb1+ {[%clk 0:00:14]} 43. Bg1 {[%clk 0:00:25]}  Qc5 {[%clk 0:00:14]} 44. Rd8+ {[%clk 0:00:23]}  Rf8 {[%clk 0:00:15]} 45. Rxf8+ {[%clk 0:00:16]}  Kxf8 {[%clk 0:00:15]} 0-1


[Site "https://www.chess.com"]

[Event "Titled Tuesday Blitz August 1 Early 2023"]
[White "Aradhya, Garg"]
[Black "WindWhistler11"]
[WhiteFideId "25006746"]
[WhiteElo "2758"]
[BlackElo "2430"]
[Result "1-0"]
[Round "1"]
[TimeControl "180+1"]
[Date "2023.08.01"]
[WhiteClock "0:00:09"]
[BlackClock "0:00:07"]
[Board "76"]

1. d4 {[%clk 0:03:00]}  Nf6 {[%clk 0:02:59]} 2. c4 {[%clk 0:03:01]}  e6 {[%clk 0:03:00]} 3. Nf3 {[%clk 0:03:01]}  c5 {[%clk 0:02:59]} 4. d5 {[%clk 0:03:00]}  exd5 {[%clk 0:02:59]} 5. cxd5 {[%clk 0:03:01]}  Bd6 {[%clk 0:02:59]} 6. Nc3 {[%clk 0:02:59]}  O-O {[%clk 0:02:59]} 7. Bg5 {[%clk 0:02:57]}  Re8 {[%clk 0:02:59]} 8. e3 {[%clk 0:02:57]}  Bf8 {[%clk 0:02:54]} 9. d6 {[%clk 0:02:47]}  Re6 {[%clk 0:02:38]} 10. Bc4 {[%clk 0:02:47]}  Rxd6 {[%clk 0:02:29]} 11. Qb3 {[%clk 0:02:46]}  Rb6 {[%clk 0:02:30]} 12. Bxf7+ {[%clk 0:02:46]}  Kh8 {[%clk 0:02:31]} 13. Qc2 {[%clk 0:02:45]}  Nc6 {[%clk 0:02:25]} 14. O-O {[%clk 0:02:40]}  Nb4 {[%clk 0:02:21]} 15. Qd2 {[%clk 0:02:32]}  d5 {[%clk 0:02:06]} 16. a3 {[%clk 0:02:32]}  Qc7 {[%clk 0:01:54]} 17. axb4 {[%clk 0:02:26]}  Qxf7 {[%clk 0:01:52]} 18. bxc5 {[%clk 0:02:25]}  Bxc5 {[%clk 0:01:50]} 19. Bxf6 {[%clk 0:02:07]}  Rxf6 {[%clk 0:01:39]} 20. Qxd5 {[%clk 0:02:07]}  Qe7 {[%clk 0:01:10]} 21. Ne4 {[%clk 0:01:51]}  Rf5 {[%clk 0:01:05]} 22. Qd3 {[%clk 0:01:50]}  Bb4 {[%clk 0:00:47]} 23. Rad1 {[%clk 0:01:26]}  Be6 {[%clk 0:00:47]} 24. Neg5 {[%clk 0:01:26]}  Rxg5 {[%clk 0:00:41]} 25. Nxg5 {[%clk 0:01:25]}  Qxg5 {[%clk 0:00:42]} 26. Qe4 {[%clk 0:01:15]}  Qe7 {[%clk 0:00:33]} 27. Rc1 {[%clk 0:01:09]}  Bd6 {[%clk 0:00:29]} 28. Rfd1 {[%clk 0:01:04]}  Re8 {[%clk 0:00:29]} 29. h3 {[%clk 0:00:55]}  Bb8 {[%clk 0:00:29]} 30. Rd4 {[%clk 0:00:53]}  Qf7 {[%clk 0:00:25]} 31. Rcd1 {[%clk 0:00:51]}  Rf8 {[%clk 0:00:23]} 32. f4 {[%clk 0:00:50]}  Bf5 {[%clk 0:00:21]} 33. Qf3 {[%clk 0:00:48]}  Bc7 {[%clk 0:00:21]} 34. Qxb7 {[%clk 0:00:44]}  h5 {[%clk 0:00:18]} 35. Qf3 {[%clk 0:00:37]}  Bb6 {[%clk 0:00:16]} 36. Rd5 {[%clk 0:00:37]}  Qg6 {[%clk 0:00:15]} 37. Kh2 {[%clk 0:00:34]}  Re8 {[%clk 0:00:15]} 38. Re5 {[%clk 0:00:33]}  Rxe5 {[%clk 0:00:13]} 39. fxe5 {[%clk 0:00:33]}  Be4 {[%clk 0:00:12]} 40. Qg3 {[%clk 0:00:30]}  Bxe3 {[%clk 0:00:11]} 41. Qxg6 {[%clk 0:00:25]}  Bxg6 {[%clk 0:00:12]} 42. e6 {[%clk 0:00:25]}  Bg5 {[%clk 0:00:10]} 43. Ra1 {[%clk 0:00:15]}  Bf5 {[%clk 0:00:09]} 44. Rxa7 {[%clk 0:00:14]}  Bxe6 {[%clk 0:00:10]} 45. Ra5 {[%clk 0:00:14]}  Bf4+ {[%clk 0:00:07]} 46. g3 {[%clk 0:00:14]}  Bc1 {[%clk 0:00:05]} 47. Rxh5+ {[%clk 0:00:14]}  Kg8 {[%clk 0:00:06]} 48. Rb5 {[%clk 0:00:14]}  Kf7 {[%clk 0:00:06]} 49. Rb7+ {[%clk 0:00:14]}  Kf6 {[%clk 0:00:07]} 50. h4 {[%clk 0:00:14]}  Be3 {[%clk 0:00:07]} 51. Rb5 {[%clk 0:00:13]}  g6 {[%clk 0:00:08]} 52. Kg2 {[%clk 0:00:12]}  Bd4 {[%clk 0:00:06]} 53. Kf3 {[%clk 0:00:12]}  Bc4 {[%clk 0:00:05]} 54. Rb4 {[%clk 0:00:09]}  Bd5+ {[%clk 0:00:06]} 55. Ke2 {[%clk 0:00:08]}  Be5 {[%clk 0:00:06]} 56. g4 {[%clk 0:00:08]}  Be6 {[%clk 0:00:06]} 57. Rb6 {[%clk 0:00:08]}  Ke7 {[%clk 0:00:05]} 58. g5 {[%clk 0:00:08]}  Bg3 {[%clk 0:00:05]} 59. Rb4 {[%clk 0:00:07]}  Bf5 {[%clk 0:00:04]} 60. Kf3 {[%clk 0:00:07]}  Bd6 {[%clk 0:00:04]} 61. Rb7+ {[%clk 0:00:07]}  Ke6 {[%clk 0:00:05]} 62. Rb6 {[%clk 0:00:07]}  Kd5 {[%clk 0:00:05]} 63. Rb5+ {[%clk 0:00:07]}  Kc4 {[%clk 0:00:05]} 64. Rb7 {[%clk 0:00:07]}  Be6 {[%clk 0:00:04]} 65. Ke2 {[%clk 0:00:07]}  Kd4 {[%clk 0:00:03]} 66. h5 {[%clk 0:00:05]}  Bg4+ {[%clk 0:00:04]} 67. Kd2 {[%clk 0:00:05]}  Bxh5 {[%clk 0:00:04]} 68. Kc2 {[%clk 0:00:05]}  Bf4 {[%clk 0:00:04]} 69. Rb5 {[%clk 0:00:05]}  Ke4 {[%clk 0:00:04]} 70. b4 {[%clk 0:00:05]}  Bg4 {[%clk 0:00:05]} 71. Rc5 {[%clk 0:00:05]}  Bf5 {[%clk 0:00:05]} 72. Kc3 {[%clk 0:00:05]}  Bxg5 {[%clk 0:00:06]} 73. b5 {[%clk 0:00:06]}  Bf6+ {[%clk 0:00:06]} 74. Kb3 {[%clk 0:00:05]}  Bd4 {[%clk 0:00:06]} 75. Rc7 {[%clk 0:00:05]}  g5 {[%clk 0:00:06]} 76. b6 {[%clk 0:00:05]}  Be5 {[%clk 0:00:05]} 77. Re7 {[%clk 0:00:05]}  Kd5 {[%clk 0:00:05]} 78. Rxe5+ {[%clk 0:00:05]}  Kxe5 {[%clk 0:00:04]} 79. b7 {[%clk 0:00:05]}  g4 {[%clk 0:00:04]} 80. b8=Q+ {[%clk 0:00:06]}  Ke4 {[%clk 0:00:05]} 81. Qg3 {[%clk 0:00:06]}  Kd5 {[%clk 0:00:03]} 82. Kc3 {[%clk 0:00:07]}  Ke6 {[%clk 0:00:04]} 83. Kd2 {[%clk 0:00:08]}  Kf6 {[%clk 0:00:05]} 84. Ke3 {[%clk 0:00:09]}  Kg6 {[%clk 0:00:05]} 85. Kf4 {[%clk 0:00:10]}  Be6 {[%clk 0:00:06]} 86. Qh4 {[%clk 0:00:10]}  Kf7 {[%clk 0:00:07]} 87. Ke5 {[%clk 0:00:09]}  Ke8 {[%clk 0:00:07]} 88. Kxe6 {[%clk 0:00:09]} 1-0


[Site "https://www.chess.com"]

[Event "Titled Tuesday Blitz August 1 Early 2023"]
[White "Manukian, Artak"]
[Black "djokovic74"]
[WhiteFideId "13301373"]
[WhiteElo "2428"]
[BlackElo "2758"]
[Result "0-1"]
[Round "1"]
[TimeControl "180+1"]
[Date "2023.08.01"]
[WhiteClock "0:00:00"]
[BlackClock "0:00:11"]
[Board "77"]

1. e4 {[%clk 0:01:13]}  e6 {[%clk 0:02:59]} 2. d4 {[%clk 0:01:11]}  d5 {[%clk 0:02:59]} 3. e5 {[%clk 0:01:11]}  c5 {[%clk 0:02:59]} 4. c3 {[%clk 0:01:11]}  Nc6 {[%clk 0:03:00]} 5. Nf3 {[%clk 0:01:11]}  Bd7 {[%clk 0:02:51]} 6. a3 {[%clk 0:01:11]}  Rc8 {[%clk 0:02:47]} 7. b4 {[%clk 0:01:11]}  cxd4 {[%clk 0:02:47]} 8. cxd4 {[%clk 0:01:12]}  Nge7 {[%clk 0:02:44]} 9. Bb2 {[%clk 0:01:11]}  Nf5 {[%clk 0:02:43]} 10. Bd3 {[%clk 0:01:11]}  Be7 {[%clk 0:02:39]} 11. Bxf5 {[%clk 0:01:08]}  exf5 {[%clk 0:02:39]} 12. Nc3 {[%clk 0:01:09]}  Be6 {[%clk 0:02:40]} 13. Na4 {[%clk 0:01:08]}  b6 {[%clk 0:02:34]} 14. O-O {[%clk 0:00:59]}  O-O {[%clk 0:02:31]} 15. Rc1 {[%clk 0:00:58]}  Qd7 {[%clk 0:02:29]} 16. Nc3 {[%clk 0:00:53]}  h6 {[%clk 0:02:28]} 17. h4 {[%clk 0:00:49]}  Qd8 {[%clk 0:02:18]} 18. g3 {[%clk 0:00:43]}  f4 {[%clk 0:02:18]} 19. Ne2 {[%clk 0:00:40]}  fxg3 {[%clk 0:02:16]} 20. fxg3 {[%clk 0:00:39]}  f6 {[%clk 0:01:44]} 21. Nf4 {[%clk 0:00:32]}  Bf5 {[%clk 0:01:42]} 22. Qb3 {[%clk 0:00:23]}  Be4 {[%clk 0:01:34]} 23. Rce1 {[%clk 0:00:16]}  Kh8 {[%clk 0:01:02]} 24. Ne6 {[%clk 0:00:15]}  Qd7 {[%clk 0:01:02]} 25. Nxf8 {[%clk 0:00:15]}  Qh3 {[%clk 0:01:03]} 26. Qe3 {[%clk 0:00:08]}  Qxg3+ {[%clk 0:01:00]} 27. Kh1 {[%clk 0:00:08]}  Rxf8 {[%clk 0:00:36]} 28. Qf2 {[%clk 0:00:06]}  Qh3+ {[%clk 0:00:31]} 29. Kg1 {[%clk 0:00:04]}  fxe5 {[%clk 0:00:29]} 30. Qg2 {[%clk 0:00:04]}  Qxg2+ {[%clk 0:00:15]} 31. Kxg2 {[%clk 0:00:05]}  Nxd4 {[%clk 0:00:15]} 32. Bxd4 {[%clk 0:00:03]}  exd4 {[%clk 0:00:16]} 33. Kg3 {[%clk 0:00:04]}  Bd6+ {[%clk 0:00:16]} 34. Kh3 {[%clk 0:00:03]}  Rxf3+ {[%clk 0:00:14]} 35. Rxf3 {[%clk 0:00:03]}  Bxf3 {[%clk 0:00:15]} 36. Re6 {[%clk 0:00:03]}  Bf4 {[%clk 0:00:13]} 37. Re8+ {[%clk 0:00:02]}  Kh7 {[%clk 0:00:13]} 38. Rf8 {[%clk 0:00:03]}  g5 {[%clk 0:00:12]} 39. hxg5 {[%clk 0:00:03]}  hxg5 {[%clk 0:00:13]} 40. b5 {[%clk 0:00:00]}  d3 {[%clk 0:00:11]} 0-1


[Site "https://www.chess.com"]

[Event "Titled Tuesday Blitz August 1 Early 2023"]
[White "Sliwicki, Damian"]
[Black "Starozhilov, Leonid"]
[WhiteFideId "1127128"]
[BlackFideId "14106752"]
[WhiteElo "2428"]
[BlackElo "2756"]
[Result "0-1"]
[Round "1"]
[TimeControl "180+1"]
[Date "2023.08.01"]
[WhiteClock "0:00:14"]
[BlackClock "0:00:46"]
[Board "79"]

1. e4 {[%clk 0:03:00]}  g6 {[%clk 0:02:57]} 2. d4 {[%clk 0:03:00]}  Bg7 {[%clk 0:02:56]} 3. Nc3 {[%clk 0:03:01]}  d6 {[%clk 0:02:56]} 4. Nf3 {[%clk 0:02:59]}  Nf6 {[%clk 0:02:56]} 5. Bg5 {[%clk 0:02:59]}  O-O {[%clk 0:02:54]} 6. Qd2 {[%clk 0:02:59]}  Bg4 {[%clk 0:02:54]} 7. Bh6 {[%clk 0:02:59]}  Bxf3 {[%clk 0:02:50]} 8. gxf3 {[%clk 0:02:59]}  e5 {[%clk 0:02:50]} 9. Bxg7 {[%clk 0:02:57]}  Kxg7 {[%clk 0:02:50]} 10. O-O-O {[%clk 0:02:55]}  Nc6 {[%clk 0:02:50]} 11. d5 {[%clk 0:02:54]}  Nd4 {[%clk 0:02:49]} 12. f4 {[%clk 0:02:54]}  Nh5 {[%clk 0:02:46]} 13. f5 {[%clk 0:02:48]}  Qh4 {[%clk 0:02:32]} 14. Kb1 {[%clk 0:02:34]}  c6 {[%clk 0:02:32]} 15. Bd3 {[%clk 0:02:23]}  Nf4 {[%clk 0:02:31]} 16. Rhg1 {[%clk 0:02:13]}  Nf3 {[%clk 0:02:23]} 17. Qe3 {[%clk 0:02:08]}  Nxg1 {[%clk 0:02:23]} 18. Rxg1 {[%clk 0:02:09]}  Rac8 {[%clk 0:02:14]} 19. dxc6 {[%clk 0:01:57]}  bxc6 {[%clk 0:02:10]} 20. fxg6 {[%clk 0:01:43]}  hxg6 {[%clk 0:02:09]} 21. Qxa7 {[%clk 0:01:39]}  Qxh2 {[%clk 0:02:07]} 22. f3 {[%clk 0:01:37]}  Rb8 {[%clk 0:01:48]} 23. Rd1 {[%clk 0:01:31]}  Qg3 {[%clk 0:01:39]} 24. Qe3 {[%clk 0:01:29]}  Rh8 {[%clk 0:01:38]} 25. Bc4 {[%clk 0:01:23]}  Rbd8 {[%clk 0:01:29]} 26. a4 {[%clk 0:01:19]}  Qg5 {[%clk 0:01:16]} 27. a5 {[%clk 0:01:15]}  Qe7 {[%clk 0:01:16]} 28. a6 {[%clk 0:01:12]}  Rb8 {[%clk 0:01:16]} 29. Ne2 {[%clk 0:01:06]}  Nxe2 {[%clk 0:01:11]} 30. Qxe2 {[%clk 0:01:07]}  Rb6 {[%clk 0:01:04]} 31. Qe3 {[%clk 0:00:57]}  Rb4 {[%clk 0:01:00]} 32. Qc3 {[%clk 0:00:55]}  Rhb8 {[%clk 0:00:57]} 33. b3 {[%clk 0:00:49]}  Qa7 {[%clk 0:00:52]} 34. Rxd6 {[%clk 0:00:47]}  Qc5 {[%clk 0:00:50]} 35. Rd7 {[%clk 0:00:36]}  Rxc4 {[%clk 0:00:46]} 36. a7 {[%clk 0:00:26]}  Rxc3 {[%clk 0:00:45]} 37. axb8=Q {[%clk 0:00:25]}  Rxc2 {[%clk 0:00:44]} 38. Rd1 {[%clk 0:00:10]}  Qc3 {[%clk 0:00:42]} 39. Qxe5+ {[%clk 0:00:04]}  Qxe5 {[%clk 0:00:41]} 40. Kxc2 {[%clk 0:00:04]}  Qc5+ {[%clk 0:00:41]} 41. Kb2 {[%clk 0:00:04]}  Qf2+ {[%clk 0:00:40]} 42. Kc3 {[%clk 0:00:04]}  Qxf3+ {[%clk 0:00:41]} 43. Kd4 {[%clk 0:00:04]}  Qxd1+ {[%clk 0:00:41]} 44. Kc5 {[%clk 0:00:05]}  Qxb3 {[%clk 0:00:41]} 45. Kxc6 {[%clk 0:00:06]}  Qe6+ {[%clk 0:00:42]} 46. Kc5 {[%clk 0:00:06]}  Qxe4 {[%clk 0:00:43]} 47. Kd6 {[%clk 0:00:07]}  f5 {[%clk 0:00:43]} 48. Kd7 {[%clk 0:00:07]}  g5 {[%clk 0:00:44]} 49. Kd8 {[%clk 0:00:08]}  f4 {[%clk 0:00:45]} 50. Kd7 {[%clk 0:00:09]}  g4 {[%clk 0:00:46]} 51. Kd8 {[%clk 0:00:10]}  g3 {[%clk 0:00:47]} 52. Kd7 {[%clk 0:00:11]}  f3 {[%clk 0:00:48]} 53. Kd8 {[%clk 0:00:12]}  f2 {[%clk 0:00:49]} 54. Kd7 {[%clk 0:00:13]}  g2 {[%clk 0:00:46]} 55. Kd8 {[%clk 0:00:14]} 0-1


[Site "https://www.chess.com"]